Cogmind - Beta 15 @@@ ROGUE MODE // 2025.10.18 @ 04:19:51 Player: Grey Result: Destroyed by H-77 Assassin with High-powered Shotgun Performance ------------- Evolutions (6) 3000 Regions Visited (13) 2600 Robots Destroyed (84) 420 Value Destroyed (3390) 3390 Prototype IDs (31) 620 Alien Tech Used (0) 0 Bonus (1192) 1192 TOTAL SCORE: 11222 Bonus ------- High Alert Combat Kills 36 Follower Combat Kills 156 Entered Garrisons 200 Entered DSFs 500 Aligned with FarCom 300 Cogmind --------- Core Integrity 0/1150 Matter 150/300 Energy 97/100 System Corruption 7% Temperature Cool (0) Movement Core (50) Location -4/Factory Parts ------- > --- POWER (2) -------- (None) > --- PROPULSION (2) --- (None) > --- UTILITY (11) ----- Improved Terrain Scan Processor Graphene Brace > --- WEAPON (4) ------- (None) > --- INVENTORY (5) ---- Advanced Terrain Scanner Improved Terrain Scan Processor Improved Point Defense System Recalibrator Peak State ------------ > --- POWER ------------ Cooled Fission Core Light Quantum Reactor > --- PROPULSION ------- Advanced Heavy Siege Treads > --- UTILITY ---------- Improved Cooling System Huge Storage Unit Matter Compressor Advanced Terrain Scanner Improved Terrain Scan Processor Advanced Recoil Stabilizer Powered Armor Graphene Brace Focal Shield EM Shield Improved Dynamic Insulation System > --- WEAPON ----------- Wave Gun Heavy Mass Driver Enhanced Hardcell Cannon > --- INVENTORY -------- Reinforced Fission Core Quantum Reactor Quantum Reactor Light Quantum Reactor Light Quantum Reactor Armored Medium Treads Armored Medium Treads Armored Medium Treads Armored Medium Treads Cryofiber Web Compact Battery Improved Terrain Scan Processor Powered Armor Powered Armor Improved Point Defense System Recalibrator Wave Gun Enhanced Nova Cannon Enhanced Nova Cannon Heavy Mass Driver [Rating: 125] Favorites ----------- Power Angular Momentum Engine Engine Angular Momentum Engine Power Core Cooled Fission Core Reactor Light Quantum Reactor Propulsion Light Treads Treads Light Treads Wheel Armored Huge Wheel Utility Huge Storage Unit Device Terrain Scanner Storage Huge Storage Unit Processor Improved Terrain Scan Processor Hackware System Shield Protection Core Shielding Weapon Light Assault Rifle Energy Gun Wave Gun Energy Cannon Enhanced Nova Cannon Ballistic Gun Light Assault Rifle Ballistic Cannon Advanced Assault Cannon Launcher Missile Launcher Build | -11 -10 -10 -10 -9 -8 -7 -7 -7 -6 -5 -5 -5 -4 ------- Run | Yrd Mat Min Exi Min Mat Fac Low Low Fac Fac DSF Gar Fac Slots Evolved 12 | . . . . . 4 2 . . 2 2 . . 2 Power 1 | . . . . . . 1 . . . . . . . Propulsion . | . . . . . . . . . . . . . . Utility 9 | . . . . . 4 . . . 1 2 . . 2 Weapon 2 | . . . . . . 1 . . 1 . . . . Parts Attached 118 | 6 3 3 . 3 18 7 6 3 13 3 14 13 26 Power 22 | 1 . 1 . 1 3 1 1 1 2 1 3 2 5 Engine 11 | 1 . 1 . 1 2 . 1 1 2 . 2 . . Core 6 | . . . . . 1 1 . . . 1 1 1 1 Reactor 5 | . . . . . . . . . . . . 1 4 Propulsion 16 | 2 . 2 . . 4 1 . . . . 2 2 3 Treads 15 | 2 . 2 . . 4 . . . . . 2 2 3 Leg . | . . . . . . . . . . . . . . Wheel 1 | . . . . . . 1 . . . . . . . Hover . | . . . . . . . . . . . . . . Flight . | . . . . . . . . . . . . . . Utility 45 | 1 2 . . . 7 3 3 1 7 2 5 4 10 Device 20 | . 1 . . . 1 1 . 1 5 . 4 4 3 Storage 5 | 1 1 . . . . . . . . . . . 3 Processor 2 | . . . . . 1 . . . . . 1 . . Hackware 1 | . . . . . 1 . . . . . . . . Protection 17 | . . . . . 4 2 3 . 2 2 . . 4 Artifact . | . . . . . . . . . . . . . . Weapon 35 | 2 1 . . 2 4 2 2 1 4 . 4 5 8 Energy Gun 8 | 1 . . . . . 1 . . 2 . 1 1 2 Energy Cannon 2 | . . . . . . . . . . . . . 2 Ballistic Gun 16 | 1 1 . . 1 4 . 1 1 1 . 2 3 1 Ballistic Cannon 6 | . . . . . . . . . 1 . 1 1 3 Launcher 3 | . . . . 1 . 1 1 . . . . . . Special Weapon . | . . . . . . . . . . . . . . Impact Weapon . | . . . . . . . . . . . . . . Slashing Weapon . | . . . . . . . . . . . . . . Piercing Weapon . | . . . . . . . . . . . . . . Special Melee Weapon . | . . . . . . . . . . . . . . Unidentified Prototypes 4 | . . . . . . 1 . . 1 1 . . 1 Parts Lost 76 | . 1 . . 1 15 1 6 1 2 1 5 8 35 Power 15 | . . . . . 3 . 2 . . 1 1 1 7 Propulsion 11 | . . . . . 5 . . . . . . 1 5 Utility 26 | . . . . . 3 1 2 . 1 . 1 5 13 Weapon 24 | . 1 . . 1 4 . 2 1 1 . 3 1 10 Highest Loss Streak 34 | . 1 . . 1 5 1 3 1 2 1 4 8 34 To Critical Strikes . | . . . . . . . . . . . . . . Average Backups 18 | 1 6 12 15 18 18 18 22 23 23 24 23 21 20 Power 1 | . 1 1 2 1 . . . . 2 3 3 3 4 Propulsion 2 | . . 1 1 1 . 1 3 4 4 4 4 5 3 Utility 8 | . 2 7 9 10 7 8 10 10 11 11 11 8 7 Weapon 5 | . 1 2 3 5 10 8 8 8 6 4 3 4 4 Tool/Special . | . . . . . . . . . . . . . . Unused Backups 18 | . . . . 1 . 2 . 1 4 1 4 2 3 Power 2 | . . . . 1 . . . . 1 . . . . Propulsion 5 | . . . . . . . . 1 . . 2 2 . Utility 8 | . . . . . . 1 . . 2 . 2 . 3 Weapon 3 | . . . . . . 1 . . 1 1 . . . Tool/Special . | . . . . . . . . . . . . . . Average Slot Usage (%) 94 | . 99 100 100 100 89 86 89 90 92 93 96 97 84 Engine 9 | . 14 14 14 14 8 7 5 13 13 7 4 4 . Core 2 | . . . . . . 7 6 . . 2 4 5 4 Treads 12 | . 28 28 28 28 16 2 . . . . 4 9 5 Wheel 1 | . . . . . . 4 7 7 6 5 2 . . Device 17 | . 13 14 14 14 9 9 . 5 15 17 21 37 34 Storage 9 | . 14 14 14 14 9 7 7 7 6 5 5 5 9 Processor 3 | . . . . . 4 7 7 7 6 5 5 5 5 Protection 9 | . . . . . 21 15 29 24 17 22 18 2 3 Energy Gun 3 | . 3 . . . . 5 . . 2 5 7 8 4 Ballistic Gun 17 | . 24 28 28 22 15 15 15 15 17 11 11 11 4 Launcher 1 | . . . . 5 2 1 7 7 3 . . . . Peak Build Rating 125 | 6 8 9 9 15 26 42 43 42 63 71 86 112 125 Average Rating 44 | 4 7 8 9 10 19 34 36 40 57 69 74 94 113 On Entrance 36 | . 6 8 9 9 15 15 42 36 42 61 71 82 110 Naked Turns . | . . . . . . . . . . . . . . Heaviest Build 197 | 12 88 89 89 95 106 112 112 110 130 133 136 145 197 Greatest Support 80 | 40 40 40 40 40 40 28 28 28 28 28 54 80 80 Greatest Overweight (x) 34 | . 2 2 2 4 29 5 3 3 4 4 4 2 34 Average Overweight (x) 2 | . 1 2 2 2 2 3 3 3 4 4 3 1 1 Largest Inventory Capacity 25 | 8 25 25 25 25 25 25 25 25 25 25 25 25 25 Average Capacity 24 | 6 23 25 25 25 25 25 25 25 25 25 25 25 24 Most Carried 25 | 4 10 15 16 19 22 25 25 25 25 25 25 25 25 Average Carried 18 | 1 6 12 15 18 18 18 22 23 23 24 23 21 21 Final Capacity 25 | 8 25 25 25 25 25 25 25 25 25 25 25 25 5 Final Carried 25 | 2 10 15 16 19 20 25 23 23 24 25 23 22 4 Class Distribution -------------------- 31% | Skirmisher 25% | Mutant 16% | Scavenger-Tank 13% | Scavenger-Skirmisher 10% | Tank Dominant Class ---------------- Mutant | -10/Materials Mutant | -10/Mines Mutant | -10/Exiles Skirmisher | -9/Mines Scavenger-Skirmisher | -8/Materials Scavenger-Tank | -7/Factory Tank | -7/Lower Caves Tank | -7/Lower Caves Skirmisher | -6/Factory Skirmisher | -5/Factory Skirmisher | -5/DSF Skirmisher | -5/Garrison Scavenger-Tank | -4/Factory Resources | -11 -10 -10 -10 -9 -8 -7 -7 -7 -6 -5 -5 -5 -4 ----------- Run | Yrd Mat Min Exi Min Mat Fac Low Low Fac Fac DSF Gar Fac Matter Collected 3336 | 220 278 70 . 151 339 118 109 189 425 . 610 583 244 Remotely 713 | . . . . . . . . . . . 480 233 . Salvage Created 2819 | . 215 141 . 154 474 98 236 76 375 . 368 393 289 Parts 195 | . 21 11 . 18 30 11 11 5 31 . 26 14 17 Haulers Intercepted . | . . . . . . . . . . . . . . Recyclers Shooed 1 | . 1 . . . . . . . . . . . . Parts Field Recycled . | . . . . . . . . . . . . . . Retrieved Matter . | . . . . . . . . . . . . . . Parts Self-Destructed 17 | . . . . . . . 10 7 . . . . . Prevented . | . . . . . . . . . . . . . . Kills | -11 -10 -10 -10 -9 -8 -7 -7 -7 -6 -5 -5 -5 -4 ------- Run | Yrd Mat Min Exi Min Mat Fac Low Low Fac Fac DSF Gar Fac Combat Hostiles Destroyed 75 | . 10 3 . 10 11 2 7 4 9 . 6 7 6 Guns 58 | . 7 3 . 8 11 2 5 . 9 . 5 6 2 Cannons 6 | . . . . . . . . . . . 1 1 4 AOE 10 | . 2 . . 2 . . 2 4 . . . . . Classes Destroyed 13 | . 3 . . 2 3 1 . . 1 . 2 . 1 Builder 1 | . . . . . . . . . 1 . . . . Tunneler 1 | . . . . 1 . . . . . . . . . Mechanic 1 | . . . . . . . . . . . . . 1 Watcher 7 | . 2 . . . 1 . . . 2 . . . 2 Swarmer 32 | . 9 . . 7 3 . 4 3 3 . 1 . 2 Grunt 15 | . 1 3 . 2 5 . 1 . . . . 3 . Brawler 1 | . . . . . 1 . . . . . . . . Sentry 5 | . . . . . 1 . 1 1 1 . 1 . . Specialist 2 | . . . . . . . . . . . 2 . . Hunter 7 | . . . . . 1 . 1 . . . 1 4 . Programmer 11 | . . . . . . 2 . . 5 . . . 4 Heavy 1 | . . . . . . . . . . . 1 . . Assembled 1 | . . . . 1 . . . . . . . . . Best Kill Streak 6 | . 6 2 . 4 3 1 3 3 4 . 2 4 4 Combat Bots Only 6 | . 6 2 . 4 3 1 3 3 2 . 2 4 4 Max Kills in Single Turn 2 | . 2 1 . 2 1 1 1 2 2 . 1 1 2 Gunslinging 1 | . 1 . . 1 . . . . . . . . . Exploded 2 | . 2 . . 1 . . 1 2 . . . . . Melee . | . . . . . . . . . . . . . . Uniques/NPCs Destroyed . | . . . . . . . . . . . . . . Combat | -11 -10 -10 -10 -9 -8 -7 -7 -7 -6 -5 -5 -5 -4 -------- Run | Yrd Mat Min Exi Min Mat Fac Low Low Fac Fac DSF Gar Fac Hostile Shots Fired 1597 | . 52 26 . 41 120 20 88 22 64 . 80 149 935 Missed 435 | . 19 6 . 11 26 4 25 11 17 . 23 25 268 Hits 1162 | . 33 20 . 30 94 16 63 11 47 . 57 124 667 Melee 4 | . . . . . 4 . . . . . . . . Projectile 1158 | . 33 20 . 30 90 16 63 11 47 . 57 124 667 AOE 2 | . . . . . . . . . . . . . 2 Critical Strikes 29 | . 1 . . . 6 . . . . . 6 7 9 Actively Blocked 18 | . . . . . 2 . . . . . 1 6 9 Part Disruptions 15 | . . . . 1 . . . . 3 . 1 . 10 Actively Blocked 10 | . . . . . . . . . 3 . 1 . 6 Damage Taken 15488 | . 334 251 . 274 1501 263 784 90 653 . 1652 1952 7734 Core 1911 | . 63 48 . 19 191 . 26 18 67 . 119 208 1152 Absorbed by Shields . | . . . . . . . . . . . . . . Redirected to Shielding 574 | . . . . . 146 . 72 24 145 . 136 51 . Ignored by Resistances 1390 | . . . . . . . . . . . 288 333 769 Core Remaining (%) 77 | 100 . . . 48 65 . . 93 92 . . 67 . Volleys Fired 300 | . 34 10 . 25 78 11 23 5 29 6 18 37 24 Largest 4 | . 2 2 . 2 2 3 3 3 4 4 4 4 3 Hottest 321 | . 60 40 . 40 40 101 76 79 163 149 195 200 321 Shots Fired 764 | . 63 20 . 40 149 26 52 16 99 24 72 142 61 Gun 687 | . 63 20 . 32 149 25 45 10 97 18 66 126 36 Cannon 55 | . . . . . . . . . 2 6 6 16 25 Launcher 22 | . . . . 8 . 1 7 6 . . . . . Special . | . . . . . . . . . . . . . . Kinetic 594 | . 45 20 . 32 149 20 45 10 82 18 42 94 37 Thermal 129 | . . . . . . 5 . . 17 6 30 48 23 Explosive 22 | . . . . 8 . 1 7 6 . . . . . Electromagnetic 19 | . 18 . . . . . . . . . . . 1 Robot Hit Streak 11 | . 7 5 . 7 11 6 5 3 4 . 7 9 11 Robot Miss Streak 8 | . 5 1 . 3 7 5 3 1 5 . 2 8 5 Penetration Max . | . . . . . . . . . . . . . . Secondary Targets 13 | . 2 1 . 3 4 . 1 . . . . 2 . Max Gunslinging Chain 1 | . 1 1 . 1 1 . 1 . . . . 1 . Shots Hit Robots 407 | . 34 14 . 23 104 14 28 6 52 . 47 52 33 Core Hits 197 | . 15 8 . 16 43 7 20 7 26 . 19 20 16 Critical Kills . | . . . . . . . . . . . . . . Critical Parts Destroyed 3 | . 1 . . . . . . . 1 . . 1 . Critical Strikes 6 | . 1 . . . . . . . 1 . 2 1 1 Burn 2 | . . . . . . . . . . . 2 . . Destroy 3 | . 1 . . . . . . . 1 . . 1 . Blast 1 | . . . . . . . . . . . . . 1 Melee Attacks . | . . . . . . . . . . . . . . Impact . | . . . . . . . . . . . . . . Slashing . | . . . . . . . . . . . . . . Piercing . | . . . . . . . . . . . . . . Sneak Attacks . | . . . . . . . . . . . . . . Combat Hostiles . | . . . . . . . . . . . . . . Follow-up Attacks . | . . . . . . . . . . . . . . Damage Inflicted 7649 | . 528 148 . 460 824 165 372 345 1047 . 914 1123 1723 Guns 5198 | . 410 148 . 211 824 165 213 41 1014 . 810 905 457 Cannons 1376 | . . . . . . . . . 26 . 104 218 1028 Explosions 1068 | . 118 . . 249 . . 159 304 . . . . 238 Melee . | . . . . . . . . . . . . . . Ramming 7 | . . . . . . . . . 7 . . . . Kinetic 4906 | . 262 148 . 211 824 115 213 41 875 . 488 725 1004 Thermal 1619 | . 118 . . . . 50 . . 165 . 426 398 462 Explosive 950 | . . . . 249 . . 159 304 . . . . 238 Electromagnetic 167 | . 148 . . . . . . . . . . . 19 Impact . | . . . . . . . . . . . . . . Slashing . | . . . . . . . . . . . . . . Piercing . | . . . . . . . . . . . . . . Highest Corruption 7 | . . . . . 3 1 1 1 2 . 1 2 7 Average Corruption 1 | . . . . . 3 1 1 1 1 . 1 1 5 Corruption Purged . | . . . . . . . . . . . . . . Corruption Blocked . | . . . . . . . . . . . . . . Effects 56 | . . . . . 3 . 3 3 9 . 1 18 19 Message Errors 16 | . . . . . . . 1 . 2 . 1 6 6 Matter Fused 14 | . . . . . 2 . . . 3 . . 4 5 Heat Flow Errors 11 | . . . . . 1 . . . 2 . . 3 5 Energy Discharges 8 | . . . . . . . 1 1 . . . 4 2 Parts Rejected 1 | . . . . . . . . . 1 . . . . Data Loss (minor) 3 | . . . . . . . 1 . . . . 1 1 Misfires 2 | . . . . . . . . 1 1 . . . . Alerts 1 | . . . . . . . . 1 . . . . . Overload Shots . | . . . . . . . . . . . . . . Overflow Damage 123 | . . . . 20 . . 5 . . . . . 98 Projectiles 98 | . . . . . . . . . . . . . 98 Explosions 25 | . . . . 20 . . 5 . . . . . . Melee . | . . . . . . . . . . . . . . Knockbacks 4 | . . . . . . . . . . . . 1 3 Impact . | . . . . . . . . . . . . . . Kinetic 4 | . . . . . . . . . . . . 1 3 Secondary . | . . . . . . . . . . . . . . Self-Inflicted Damage 262 | . 30 . . 27 . 28 70 . 3 . . . 104 Shots 8 | . 1 . . 2 . 1 2 . . . . . 2 Rammed 1 | . . . . . . . . . 1 . . . . Targets Rammed 1 | . . . . . . . . . 1 . . . . Kicked . | . . . . . . . . . . . . . . Crushed . | . . . . . . . . . . . . . . Highest Temperature 672 | . 42 35 . 20 119 148 42 54 539 308 354 672 575 Average Temperature 116 | . 21 12 . 13 16 45 20 25 131 134 115 179 204 Received Heat Transfer 1216 | . 60 144 . 46 666 . 15 24 12 . 36 189 24 Effects 32 | . . . . . . . . . 12 . . 12 8 Shutdowns 5 | . . . . . . . . . 2 . . 2 1 Energy Bleed 4 | . . . . . . . . . . . . 2 2 Interference 9 | . . . . . . . . . 5 . . 4 . Matter Decay 3 | . . . . . . . . . . . . 2 1 Short Circuit 5 | . . . . . . . . . 1 . . 1 3 Damage (minor) 1 | . . . . . . . . . . . . . 1 Damage (major) 4 | . . . . . . . . . 4 . . . . Damage (core) 1 | . . . . . . . . . . . . 1 . Siege Activations . | . . . . . . . . . . . . . . Martial Activations . | . . . . . . . . . . . . . . Shielding Activations . | . . . . . . . . . . . . . . Robots Disrupted . | . . . . . . . . . . . . . . Combat Hostiles . | . . . . . . . . . . . . . . Robots Corrupted 1 | . 1 . . . . . . . . . . . . Combat Hostiles 1 | . 1 . . . . . . . . . . . . Parts Fried . | . . . . . . . . . . . . . . Impact Corruptions . | . . . . . . . . . . . . . . Robots Melted . | . . . . . . . . . . . . . . Combat Hostiles . | . . . . . . . . . . . . . . Parts Melted 9 | . . . . . . . . . 2 . 1 5 1 Heat Transferred 2618 | . 250 . . . . 74 . . 259 . 888 629 518 Parts Sabotaged . | . . . . . . . . . . . . . . Parts Stolen . | . . . . . . . . . . . . . . Parts Stripped . | . . . . . . . . . . . . . . Power Chain Reactions 1 | . 1 . . . . . . . . . . . . Alert | -11 -10 -10 -10 -9 -8 -7 -7 -7 -6 -5 -5 -5 -4 ------- Run | Yrd Mat Min Exi Min Mat Fac Low Low Fac Fac DSF Gar Fac Maximum Alert Level 2 | . . . . . . . . . . . . 2 1 Low Security (%) 83 | 100 100 100 . 100 100 100 . . 100 100 100 43 15 Level 1 13 | . . . . . . . . . . . . 37 84 Level 2 3 | . . . . . . . . . . . . 18 . Level 3 . | . . . . . . . . . . . . . . Level 4 . | . . . . . . . . . . . . . . Level 5 . | . . . . . . . . . . . . . . High Security . | . . . . . . . . . . . . . . Max Security . | . . . . . . . . . . . . . . Peak Influence 631 | . 180 50 . 70 42 35 . . 96 25 133 631 331 Initial 331 | . . . . . 22 . . . . 25 3 92 331 Average 79 | . 70 2 . 19 8 3 . . 23 4 42 273 230 Influence Increases 2765 | . 269 70 . 251 305 113 175 90 292 20 170 659 351 Destroy 0b10 Robot/C 1560 | . 200 60 . 180 220 40 140 80 180 . 120 220 120 Destroy 0b10 Robot/NC 50 | . 10 . . 5 5 . . . 15 . . . 15 Destroy Leader 294 | . 34 10 . 20 52 20 20 10 74 . 20 10 24 Allied During Kill 13 | . . . . . . . . . . . . 13 . Successful Hack 60 | . 5 . . . 13 14 . . 2 12 . 14 . Disable Machine 150 | . . . . . . 30 . . . . . . 120 Anti-Garrison Action 250 | . . . . . . . . . . . . 250 . Destroy Structure 223 | . 5 . . 46 . 9 . . 6 8 . 107 42 Partial Spotted 15 | . . . . . . . . . 15 . . . . Lose Combat Pursuer 150 | . 15 . . . 15 . 15 . . . 30 45 30 Influence Decreases 2765 | . 269 70 . 193 363 91 163 124 239 68 52 151 982 Entered New Map 413 | . . . . . 36 . 9 7 . 28 2 31 300 Time Decay 1693 | . 259 70 . 193 214 91 114 107 219 40 . . 386 Lost Part 603 | . 10 . . . 97 . 40 10 20 . 50 80 296 Lost Ally 40 | . . . . . . . . . . . . 40 . Purge Threat 16 | . . . . . 16 . . . . . . . . Squads Dispatched 12 | . 1 . . . 1 3 . . 4 . 2 . 1 Investigation 2 | . 1 . . . . 1 . . . . . . . Extermination 6 | . . . . . . 2 . . 3 . . . 1 Reinforcement 4 | . . . . . 1 . . . 1 . 2 . . Assault . | . . . . . . . . . . . . . . Garrison . | . . . . . . . . . . . . . . Intercept . | . . . . . . . . . . . . . . Searches Triggered . | . . . . . . . . . . . . . . Construction Impeded . | . . . . . . . . . . . . . . Haulers Reinforced . | . . . . . . . . . . . . . . Active Scanning Responses . | . . . . . . . . . . . . . . Cargo Convoy Interrupts 1 | . . . . . . . . . . . . . 1 Stealth | -11 -10 -10 -10 -9 -8 -7 -7 -7 -6 -5 -5 -5 -4 --------- Run | Yrd Mat Min Exi Min Mat Fac Low Low Fac Fac DSF Gar Fac Distress Signals 9 | . 2 . . 1 4 . . . 2 . . . . Communications Jammed . | . . . . . . . . . . . . . . Distress Signals . | . . . . . . . . . . . . . . Times Spotted 124 | . 16 3 . 10 20 2 8 4 14 . 11 14 22 Peak Tracking Total 14 | . 9 2 . 4 4 1 3 3 3 . 4 5 14 Tactical Retreats 9 | . 1 . . . 1 . 1 . . . 2 2 2 Traps | -11 -10 -10 -10 -9 -8 -7 -7 -7 -6 -5 -5 -5 -4 ------- Run | Yrd Mat Min Exi Min Mat Fac Low Low Fac Fac DSF Gar Fac Traps Triggered 11 | . 1 . . . . 1 . . 3 . . 6 . Indirectly . | . . . . . . . . . . . . . . Trap Hack Attempts . | . . . . . . . . . . . . . . Triggered . | . . . . . . . . . . . . . . Disarmed . | . . . . . . . . . . . . . . Reprogrammed . | . . . . . . . . . . . . . . Reused . | . . . . . . . . . . . . . . Traps Extracted . | . . . . . . . . . . . . . . Installed 3 | . . 3 . . . . . . . . . . . Triggered . | . . . . . . . . . . . . . . Most Traps Carried 3 | . . 3 . . . . . . . . . . . Machines | -11 -10 -10 -10 -9 -8 -7 -7 -7 -6 -5 -5 -5 -4 ---------- Run | Yrd Mat Min Exi Min Mat Fac Low Low Fac Fac DSF Gar Fac Machines Disabled 11 | . . . . . . 2 . . . . . 1 8 Max in Single Turn 4 | . . . . . . 1 . . . . . 1 4 Garrison Access 1 | . . . . . . . . . 1 . . . . Garrison Relay 1 | . . . . . . . . . . . . 1 . Machines Repaired . | . . . . . . . . . . . . . . Machines Dismantled . | . . . . . . . . . . . . . . Machines Sabotaged . | . . . . . . . . . . . . . . Overloaded Fab Kills . | . . . . . . . . . . . . . . Hacking | -11 -10 -10 -10 -9 -8 -7 -7 -7 -6 -5 -5 -5 -4 --------- Run | Yrd Mat Min Exi Min Mat Fac Low Low Fac Fac DSF Gar Fac Machines Accessed 19 | . 1 1 1 . 4 3 . . 5 2 . 1 1 Terminals 14 | . 1 1 . . 3 2 . . 4 2 . 1 . Fabricators 1 | . . . . . . 1 . . . . . . . Repair Stations . | . . . . . . . . . . . . . . Recycling Units . | . . . . . . . . . . . . . . Scanalyzers . | . . . . . . . . . . . . . . Garrison Access 3 | . . . . . 1 . . . 1 . . . 1 Total Hacks 48 | . 4 2 1 . 16 3 . . 10 10 . 1 1 Successful 24 | . 1 1 1 . 6 2 . . 6 6 . 1 . Failed 24 | . 3 1 . . 10 1 . . 4 4 . . 1 Catastrophic . | . . . . . . . . . . . . . . Database Lockouts . | . . . . . . . . . . . . . . Manual 1 | . . . 1 . . . . . . . . . . Terminals 42 | . 4 2 . . 14 2 . . 9 10 . 1 . Fabricators 1 | . . . . . . 1 . . . . . . . Repair Stations . | . . . . . . . . . . . . . . Recycling Units . | . . . . . . . . . . . . . . Scanalyzers . | . . . . . . . . . . . . . . Garrison Access 4 | . . . . . 2 . . . 1 . . . 1 Terminal Hacks 22 | . 1 1 1 . 6 1 . . 5 6 . 1 . Record 7 | . . . . . . . . . 3 4 . . . Robot Analysis 1 | . . . . . 1 . . . . . . . . Prototype ID Bank 2 | . . . . . 2 . . . . . . . . Open DSF 2 | . . . . . . . . . 1 1 . . . Level Access Points 1 | . . . . . 1 . . . . . . . . Emergency Access Points 2 | . . . . . 1 . . . . . . 1 . Alert Level 1 | . . . . . . . . . . 1 . . . Unreport Threat 1 | . . . . . 1 . . . . . . . . Locate Traps 1 | . . . . . . . . . 1 . . . . Zone Layout 3 | . 1 1 . . . 1 . . . . . . . Proto ID Catalog 1 | . . . 1 . . . . . . . . . . Fabricator Hacks 1 | . . . . . . 1 . . . . . . . Network Status 1 | . . . . . . 1 . . . . . . . Repair Station Hacks . | . . . . . . . . . . . . . . Recycling Unit Hacks . | . . . . . . . . . . . . . . Scanalyzer . | . . . . . . . . . . . . . . Garrison Access Hacks 1 | . . . . . . . . . 1 . . . . Seal Access 1 | . . . . . . . . . 1 . . . . Unauthorized Hacks . | . . . . . . . . . . . . . . Terminals . | . . . . . . . . . . . . . . Fabricators . | . . . . . . . . . . . . . . Repair Stations . | . . . . . . . . . . . . . . Recycling Units . | . . . . . . . . . . . . . . Scanalyzers . | . . . . . . . . . . . . . . Garrison Access . | . . . . . . . . . . . . . . Data Cores Recovered . | . . . . . . . . . . . . . . Used . | . . . . . . . . . . . . . . Hacking Detections 15 | . 1 1 . . 3 2 . . 4 2 . 1 1 Full Trace Events . | . . . . . . . . . . . . . . Feedback Events . | . . . . . . . . . . . . . . Feedback Blocked . | . . . . . . . . . . . . . . Robot Schematics Acquired . | . . . . . . . . . . . . . . Robots Built . | . . . . . . . . . . . . . . Authchips . | . . . . . . . . . . . . . . Time . | . . . . . . . . . . . . . . Total Robot Build Rating . | . . . . . . . . . . . . . . Part Schematics Acquired . | . . . . . . . . . . . . . . Parts Built . | . . . . . . . . . . . . . . Authchips . | . . . . . . . . . . . . . . Time . | . . . . . . . . . . . . . . Total Part Build Rating . | . . . . . . . . . . . . . . Parts Repaired . | . . . . . . . . . . . . . . Time . | . . . . . . . . . . . . . . Parts Recycled . | . . . . . . . . . . . . . . Recycled Matter . | . . . . . . . . . . . . . . Retrieved Matter . | . . . . . . . . . . . . . . Retrieved Components . | . . . . . . . . . . . . . . Parts Scanalyzed . | . . . . . . . . . . . . . . Part Schematics Acquired . | . . . . . . . . . . . . . . Parts Damaged . | . . . . . . . . . . . . . . Bothacking | -11 -10 -10 -10 -9 -8 -7 -7 -7 -6 -5 -5 -5 -4 ------------ Run | Yrd Mat Min Exi Min Mat Fac Low Low Fac Fac DSF Gar Fac Used RIF Installer . | . . . . . . . . . . . . . . Robots Hacked . | . . . . . . . . . . . . . . Non-combat . | . . . . . . . . . . . . . . Combat . | . . . . . . . . . . . . . . Robot Hacks Applied . | . . . . . . . . . . . . . . Relay Couplers Released 5 | . . . . . . . . . . . . 5 . Machine Destruction 5 | . . . . . . . . . . . . 5 . Fabnet Peak Effective % . | . . . . . . . . . . . . . . Robots Rewired . | . . . . . . . . . . . . . . Allies Hacked . | . . . . . . . . . . . . . . Hacks Repelled . | . . . . . . . . . . . . . . Allies | -11 -10 -10 -10 -9 -8 -7 -7 -7 -6 -5 -5 -5 -4 -------- Run | Yrd Mat Min Exi Min Mat Fac Low Low Fac Fac DSF Gar Fac Total Allies 2 | . . . . . . . . . . . . 2 . Largest Group 2 | . . . . . . . . . . . . 2 . Highest-Rated Group 157 | . . . . . . . . . . . . 157 . Highest-Rated Ally 95 | . . . . . . . . . . . . 95 . Initial Warlord ECA Mod 2 | . . . . . . . . . . . . . 2 Total Orders . | . . . . . . . . . . . . . . Ally Attacks 22 | . . . . . . . . . . . . 22 . Total Damage 861 | . . . . . . . . . . . . 861 . Kills 4 | . . . . . . . . . . . . 4 . Allies Corrupted . | . . . . . . . . . . . . . . Allies Melted . | . . . . . . . . . . . . . . Intel | -11 -10 -10 -10 -9 -8 -7 -7 -7 -6 -5 -5 -5 -4 ------- Run | Yrd Mat Min Exi Min Mat Fac Low Low Fac Fac DSF Gar Fac Active Infowar (turns) 11174 | . 751 1700 679 886 895 1551 46 . 1424 215 284 1894 849 Terrain 9830 | . 751 1700 679 886 895 416 . . 1424 215 284 1731 849 Seismic 1 | . . . . . . 1 . . . . . . . Triangulation 195 | . . . . . . . . . 195 . . . . Cloaking 4192 | . . . . . 443 1550 46 . 201 215 255 766 716 Robot Analysis Total 1 | . . . . . 1 . . . . . . . . Derelict Logs Recovered 3 | . . 3 . . . . . . . . . . . Drone Launches . | . . . . . . . . . . . . . . Drone Recoveries . | . . . . . . . . . . . . . . Exploration | -11 -10 -10 -10 -9 -8 -7 -7 -7 -6 -5 -5 -5 -4 ------------- Run | Yrd Mat Min Exi Min Mat Fac Low Low Fac Fac DSF Gar Fac Turns Passed 13035 | 79 773 1700 679 886 1225 1552 567 522 1535 215 431 1927 944 Spaces Moved 4137 | 44 225 492 211 209 255 508 341 343 640 107 81 484 197 Core 11 | 5 . . . . 2 . . . . . . . 4 Treads 2220 | 39 225 492 211 209 253 83 . . . . 31 484 193 Legs . | . . . . . . . . . . . . . . Wheels 1906 | . . . . . . 425 341 343 640 107 50 . . Hover . | . . . . . . . . . . . . . . Flight . | . . . . . . . . . . . . . . Fastest Speed 50 | 50 160 320 320 320 320 145 145 145 160 160 160 250 50 Average Speed 244 | 147 292 320 320 350 349 212 145 145 160 160 226 301 313 Slowest Speed 1750 | 160 320 320 320 480 1500 560 145 145 160 160 490 330 1750 Overloaded Moves . | . . . . . . . . . . . . . . Propulsion Burnouts . | . . . . . . . . . . . . . . Robots Hopped . | . . . . . . . . . . . . . . Potential Cave-ins 6 | . . . . . . . . . . . . 6 . Cave-ins Triggered . | . . . . . . . . . . . . . . Exploration Rate (%) 36 | 4 41 81 60 34 26 11 59 55 20 3 47 62 7 Regions Visited 13 Branch Regions 5 Pre-discovered Areas 2 | . . 2 . . . . . . . . . . . Known Exits Taken 2 | . . . . . 1 . . . . 1 . . . Unknown Exits Taken 9 | 1 1 1 1 1 . 1 1 1 1 . . . . Scrap Searched 3 | . . 1 . . . . 1 1 . . . . . Spaces Dug 34 | . . . . 19 . 9 . . . 2 . 4 . Terrain Destroyed 188 | . 4 . . 55 . 9 38 33 1 4 . 23 21 Melee . | . . . . . . . . . . . . . . Projectile 32 | . . . . . . . . . 1 4 . 22 5 AOE 155 | . 4 . . 55 . 9 38 33 . . . . 16 Terrain Rammed . | . . . . . . . . . . . . . . Walls Destroyed . | . . . . . . . . . . . . . . Machines Disabled . | . . . . . . . . . . . . . . Actions | -11 -10 -10 -10 -9 -8 -7 -7 -7 -6 -5 -5 -5 -4 --------- Run | Yrd Mat Min Exi Min Mat Fac Low Low Fac Fac DSF Gar Fac Total 6516 | 58 280 603 217 327 475 962 372 358 1087 136 292 878 471 Wait 1744 | 1 7 79 6 81 99 414 . . 375 11 151 316 204 Move 4122 | 43 224 491 210 208 254 507 340 342 639 106 80 481 197 Hop . | . . . . . . . . . . . . . . Pick Up 140 | 8 11 11 1 6 18 15 3 5 16 6 14 15 11 Fast Attach 5 | . . . . . . . . . 2 1 2 . . Attach 94 | 6 2 . . 1 20 7 5 2 7 2 7 11 24 Detach 5 | . . . . . 4 1 . . . . . . . Swap 41 | . 1 3 . 4 1 2 1 1 7 1 9 6 5 Drop 59 | . 1 6 . 2 1 5 . 3 11 3 11 10 6 Fire 300 | . 34 10 . 25 78 11 23 5 29 6 18 37 24 Melee . | . . . . . . . . . . . . . . Ram 1 | . . . . . . . . . 1 . . . . Kick . | . . . . . . . . . . . . . . Crush . | . . . . . . . . . . . . . . Escape Stasis 2 | . . . . . . . . . . . . 2 . Rewire . | . . . . . . . . . . . . . . Trap 3 | . . 3 . . . . . . . . . . . Miscellaneous . | . . . . . . . . . . . . . . Route ------- -11/Scrapyard -10/Materials -10/Mines (discovered 3 exits: [*Mat] / *Exi / [*Sub]) -10/Exiles -9/Mines -8/Materials (discovered 3 exits: *Fac x3) -7/Factory -7/Lower Caves -7/Lower Caves -6/Factory -5/Factory -5/DSF -5/Garrison (discovered 2 exits: *Fac x2) -4/Factory History --------- Turn | Location | Event 10 | -11/Scrapyard | Discovered new exit (range 13) 80 | -11/Scrapyard | Entered Materials 312 | -10/Materials | Build established: Mutant 824 | -10/Materials | Discovered new exit (range 10) 853 | -10/Materials | Entered Mines 958 | -10/Mines | Learned location of Zion (-6) 1010 | -10/Mines | Learned 4 Materials zone layouts 1010 | -10/Mines | Discovered new exit (range 8) 1011 | -10/Mines | Learned location of Storage (-9) 1371 | -10/Mines | Learned Materials terminal intel 1573 | -10/Mines | Found a hidden stash of uninstalled traps 1688 | -10/Mines | Joined a pair of Derelicts in attacking an 0b10 outpost 1948 | -10/Mines | Discovered new exit (range 10) 2540 | -10/Mines | Deemed a non-threat by the Exiles lab entrance 2540 | -10/Mines | Discovered new exit (range 5) 2553 | -10/Mines | Entered Exiles 2630 | -10/Exiles | Met 8R-AWN 2688 | -10/Exiles | Met EX-HEX 2774 | -10/Exiles | Met EX-BIN 2813 | -10/Exiles | Aligned with FarCom system 2816 | -10/Exiles | Given EX-Vault access code 2889 | -10/Exiles | Opened EX-Vault 2915 | -10/Exiles | Found Cloak of Protection 2980 | -10/Exiles | Warned to stay clear of 0b10 Research branches 3019 | -10/Exiles | Exiles lab attacked by MAIN.C 3194 | -10/Exiles | Discovered new exit (range 14) 3232 | -10/Exiles | Left Exiles lab with Cloak of Protection 3232 | -10/Exiles | Entered Mines 3290 | -9/Mines | Core integrity fell below 50% 3520 | -9/Mines | Build established: Skirmisher 3605 | -9/Mines | Received a Rocket Launcher from a helpful Derelict 3688 | -9/Mines | Excavation squad dispatched 3688 | -9/Mines | A large section of the Mines collapsed 3938 | -9/Mines | Excavation squad dispatched 4060 | -9/Mines | Discovered new exit (range 6) 4118 | -9/Mines | Entered Materials 4118 | -8/Materials | Evolved 4 slots: Utility x4 4120 | -8/Materials | Loaded intel: 12 terminal locations 4655 | -8/Materials | Lost 5 parts (1p2n1u1w) 4951 | -8/Materials | Identified exit to Factory 5187 | -8/Materials | Lost 4 parts (2n2w) 5343 | -8/Materials | Entered Factory 5343 | -7/Factory | Evolved 2 slots: Power x1, Weapon x1 5636 | -7/Factory | Build established: Scavenger-Skirmisher 6055 | -7/Factory | Build established: Scavenger-Tank 6796 | -7/Factory | Discovered new exit (range 6) 6895 | -7/Factory | Entered Lower Caves 6978 | -7/Lower Caves | Lost 3 parts (2u1w) 7236 | -7/Lower Caves | Build established: Tank 7420 | -7/Lower Caves | Attracted the attention of an 0b10 checkpoint 7448 | -7/Lower Caves | Discovered new exit (range 8) 7462 | -7/Lower Caves | Entered another Lower Caves area 7534 | -7/Lower Caves | Found DCF Scrap (15 items) 7684 | -7/Lower Caves | Attracted the attention of an 0b10 checkpoint 7827 | -7/Lower Caves | Discovered new exit (range 13) 7984 | -7/Lower Caves | Entered Factory 7984 | -6/Factory | Evolved 2 slots: Utility x1, Weapon x1 8375 | -6/Factory | Build established: Skirmisher 9479 | -6/Factory | Discovered new exit (range 20) 9519 | -6/Factory | Entered another Factory area 9519 | -5/Factory | Evolved 2 slots: Utility x2 9732 | -5/Factory | Identified exit to DSF 9734 | -5/Factory | Entered DSF 9940 | -5/DSF | Additional patrols routed to DSF 9979 | -5/DSF | Discovered new exit (range 13) 10041 | -5/DSF | Lost 4 parts (1p1u2w) 10165 | -5/DSF | Entered Garrison 10400 | -5/Garrison | Found embedded Infiltrators 11213 | -5/Garrison | Discovered new exit (range 13) 11269 | -5/Garrison | Attempted to access garrison exit controls, blocked by remote lockdown 11344 | -5/Garrison | Lost 8 parts (1p1n5u1w) 11719 | -5/Garrison | Triggered checkpoint 11772 | -5/Garrison | Garrison Relay disabled 11776 | -5/Garrison | Build established: Scavenger-Skirmisher 11994 | -5/Garrison | Discovered new exit (range 12) 12092 | -5/Garrison | Entered Factory 12092 | -4/Factory | Evolved 2 slots: Utility x2 12282 | -4/Factory | Found Powered Armor 12286 | -4/Factory | Found Powered Armor 12289 | -4/Factory | Found Powered Armor 12297 | -4/Factory | Found Powered Armor 12398 | -4/Factory | Build established: Scavenger-Tank 12473 | -4/Factory | Spotted B-86 Titan 12897 | -4/Factory | Cargo convoy interrupted 13001 | -4/Factory | Core integrity fell below 50% 13031 | -4/Factory | Core integrity fell below 20% 13036 | -4/Factory | Destroyed by H-77 Assassin with High-powered Shotgun Last Messages --------------- 13025_ Autogun destroyed. 13025_ Penetrated by Slug. 13026_ M-36 Artificer repairs H-77 Assassin. 13027_ Quantum Reactor destroyed. 13027_ Slug penetrates Wall. 13027_ M-36 Artificer knocked back. 13027_ Knocked back. 13027_ M-36 Artificer repairs H-77 Assassin Hpw. Shotgun. 13030_ M-36 Artificer knocked back. 13030_ M-36 Artificer repairs H-77 Assassin Imp. Phase Shifter. 13030_ Penetrated by Slug. 13030_ Slug penetrates Wall. 13032_ Penetrated by Slug. 13032_ Slug penetrates Wall. 13034_ M-36 Artificer repairs M-36 Artificer. 13034_ Dropped Huge Storage Unit. 13036_ Penetrated by Slug. [Achievement: Just Browsing] Map ----- +----------------------------------------------------+ | ########## ? # ? ???????????????????? | | ########## # ???????????????????? | | ########## ? # ??????????????????? | | ########## #####??????????????????? | | ########## ##?##??????????????????? | | ########## ##?#???????????????????? | | ########## ?#####?????????????????? | | ########## #####??#???????????????? | | # ### #####BB###?????????????? | | # ### #####BB???#????????????? | | # ### ? ? ? ???????????? | | # ### ?? ????????????? | | " ## !!! "" ?????????????? | | " ## ^ ! "" ??????????? | | " " !! " ?????????? | | " ?? ?????????? | | " " ??????????? | | #### ? ?????????? | | * ### ##?##??????????? | | = #### ######?????????? | | ! *! #### ###??##????????? | | # %;##### % # ""?? ???????? | | #### ! | h % # "??" ?#?????? | | ### *%!%m h ! # "" " ??#?????? | | ###Tx % mx == # ???????? | | ####! %%%h @ == # ! ???????? | | #### ""% ==!%#% ?#?????? | | #### ""% ; ?##?#???? | | #### %# """ #?#????? | | #### """ # """ ??####?? | | #### """ ! # """ ?????"?? | | #### """ #! #?##???? | | #### ###########?#??? | | #### # ## ????? ?? | | #### # ## ? ??? | | #### ############### ###? """""??? ? | | #### ###### # #### ""?"""" ? ? | | #### ######""" # #?## """"?"? ??? | | ####+######""" # ####?""??""" ? | | ##? ##""" =# #### ? ?? ??? | | ### ## # ##?# """?""?? | | ### ##""" !+ #### "?""""? ? ? | | #?? ##""" # +?"?""""" ? | | ???? ##""" # ####?""?"?"" ? | | ?##? ? ## # ##?? ? ??? | | #?##?###+?########## #####??########? | | ???### ######### ############?#?? | | ??##?# ######### #############??# | | ?#?###??" ###########?##?? | | #??### ### #?#?###?####??## | +----------------------------------------------------+ Best States ------------- Heat Dissipation 70 Energy Generation 45 Energy Capacity 600 Matter Stores 305 Matter Capacity 550 Sight Range 16 Terrain Scan Range 20 Terrain Scan Density 110 Cloak Strength 5 Base Temperature (-) 100 EM Shielding 3 Armor Coverage 1200 Resistance: KI 20 Resistance: EX 25 Resistance: EM 25 Core Shielding 20 Power Shielding 66 Propulsion Shielding 66 Utility Shielding 66 Weapon Shielding 33 Evasion (%) 40 Recoil Reduction 8 Defensive Hacking 10 Item Schematics ----------------- None Robot Schematics ------------------ None Fabricated ------------ Nothing Repaired ---------- Nothing Alien Tech Used ----------------- None Achievements -------------- Just Browsing Maybe Next Time I'll Detach My Launcher Omniscient Cartographer Challenges ------------ None Game ------ Seed CombatBlanketChainsword Manual? 0 Play Time 01:56:59 Cumulative 25.9 hours Start 2025.10.18 @ 02:16:19 End 2025.10.18 @ 04:19:51 Sessions 1 Manual Loads 0 Difficulty Rogue Special Mode None Game No. 25 Rogue 25 Adventurer 0 Explorer 0 Win Type - Total 0 Types 0/0/0/0/0/0/0/0/0/0 Lore% 13 Gallery% 25 Achievement% 21 Wizard Run 0 Options --------- Layout 1 ASCII 0 Keyboard 0 Movement Mouse Keybinds 0 Fullscreen 1 Font 32/SmallcapsGlow Map View 50x35 Zoom Use 0% Tactical HUD 1 Map Filters NONE Filters NONE Steam 1 RUN: 991202b0-5459-4269-9d84-a6b59539fd11